Cogmind - Beta 13 @@@ ROGUE MODE // 2024.04.20 @ 12:10:38 Player: SleepyOwl4ever Result: Destroyed by as-81150 with Assembled Heavy Rifle Performance ------------- Evolutions (0) 0 Regions Visited (2) 400 Robots Destroyed (9) 45 Value Destroyed (236) 236 Prototype IDs (0) 0 Alien Tech Used (0) 0 Bonus (0) 0 TOTAL SCORE: 681 Bonus ------- None Cogmind --------- Core Integrity 0/250 Matter 262/300 Energy 37/100 System Corruption 0% Temperature Cool (0) Movement Walking (400) Ox4 Location -10/Mines Parts ------- > --- POWER (1) -------- (None) > --- PROPULSION (2) --- Aluminum Leg > --- UTILITY (2) ------ High-capacity Storage Unit > --- WEAPON (2) ------- Small Laser > --- INVENTORY (20) --- (None) Peak State ------------ > --- POWER ------------ Improved Ion Engine > --- PROPULSION ------- Wheel Wheel > --- UTILITY ---------- High-capacity Storage Unit Terrain Scan Processor > --- WEAPON ----------- Light EM Pulse Cannon Light EM Pulse Cannon > --- INVENTORY -------- Light Ion Engine Aluminum Leg Aluminum Leg Small Laser Light Assault Rifle [Rating: 11] Favorites ----------- Power Improved Ion Engine Engine Improved Ion Engine Propulsion Wheel Leg Aluminum Leg Wheel Wheel Utility High-capacity Storage Unit Device Heat Sink Storage High-capacity Storage Unit Processor Terrain Scan Processor Weapon Light EM Pulse Cannon Energy Gun EM Pulse Gun Energy Cannon Light EM Pulse Cannon Ballistic Gun Light Assault Rifle Build | -11 -10 -10 ------- Run | Yrd Mat Min Slots Evolved . | . . . Power . | . . . Propulsion . | . . . Utility . | . . . Weapon . | . . . Parts Attached 20 | 8 5 7 Power 3 | 1 1 1 Engine 3 | 1 1 1 Core . | . . . Reactor . | . . . Propulsion 8 | 5 . 3 Treads . | . . . Leg 4 | 2 . 2 Wheel 4 | 3 . 1 Hover . | . . . Flight . | . . . Utility 3 | . 2 1 Device 1 | . . 1 Storage 1 | . 1 . Processor 1 | . 1 . Hackware . | . . . Protection . | . . . Artifact . | . . . Weapon 6 | 2 2 2 Energy Gun 3 | 2 . 1 Energy Cannon 2 | . 2 . Ballistic Gun 1 | . . 1 Ballistic Cannon . | . . . Launcher . | . . . Special Weapon . | . . . Impact Weapon . | . . . Slashing Weapon . | . . . Piercing Weapon . | . . . Special Melee Weapon . | . . . Unidentified Prototypes . | . . . Parts Lost 10 | . . 10 Power 2 | . . 2 Propulsion 4 | . . 4 Utility 1 | . . 1 Weapon 3 | . . 3 Highest Loss Streak 9 | . . 9 To Critical Strikes . | . . . Average Slot Usage (%) 84 | . 76 90 Engine 13 | . 14 12 Leg 1 | . . 2 Wheel 24 | . 28 21 Device 3 | . . 6 Storage 9 | . 3 14 Processor 4 | . 2 6 Energy Gun 5 | . 11 . Energy Cannon 21 | . 17 24 Naked Turns . | . . . Heaviest Build 56 | 6 55 56 Greatest Support 20 | 20 20 20 Greatest Overweight (x) 5 | . 2 5 Average Overweight (x) . | . . 2 Largest Inventory Capacity 20 | 5 20 20 Average Capacity 12 | 5 8 20 Most Carried 6 | 4 6 6 Average Carried 3 | 2 4 4 Final Capacity 20 | 5 20 20 Final Carried 5 | 3 5 . Class Distribution -------------------- 100% | Mutant Dominant Class ---------------- Mutant | -10/Materials Mutant | -10/Mines Resources | -11 -10 -10 ----------- Run | Yrd Mat Min Matter Collected 350 | 280 30 40 Remotely . | . . . Salvage Created 332 | 58 117 157 Parts 15 | 2 9 4 Haulers Intercepted . | . . . Recyclers Shooed . | . . . Parts Field Recycled . | . . . Retrieved Matter . | . . . Parts Self-Destructed . | . . . Prevented . | . . . Kills | -11 -10 -10 ------- Run | Yrd Mat Min Combat Hostiles Destroyed 10 | 1 4 5 Guns 2 | 1 . 1 Cannons 7 | . 4 3 Classes Destroyed 5 | 2 2 1 Worker 1 | 1 . . Operator 1 | . 1 . Swarmer 3 | . 3 . Grunt 4 | 1 1 2 Assembled 3 | . . 3 Best Kill Streak 5 | 1 5 2 Combat Bots Only 4 | 1 4 2 Max Kills in Single Turn 1 | 1 1 1 Gunslinging . | . . . Exploded . | . . . Melee . | . . . Uniques/NPCs Destroyed . | . . . Combat | -11 -10 -10 -------- Run | Yrd Mat Min Hostile Shots Fired 75 | 5 19 51 Missed 17 | . 8 9 Damage Taken 989 | 58 97 834 Core 259 | . 19 240 Absorbed by Shields . | . . . Core Remaining (%) 100 | 100 . . Volleys Fired 34 | 5 13 16 Largest 2 | 2 2 2 Hottest 112 | 80 112 112 Shots Fired 58 | 10 18 30 Gun 24 | 10 6 8 Cannon 34 | . 12 22 Launcher . | . . . Special . | . . . Kinetic 3 | . . 3 Thermal 13 | 5 3 5 Explosive . | . . . Electromagnetic 42 | 5 15 22 Robot Hit Streak 6 | 2 3 6 Robot Miss Streak 3 | 1 3 3 Penetration Max . | . . . Secondary Targets . | . . . Shots Hit Robots 33 | 6 9 18 Core Hits 16 | 3 4 9 Critical Kills . | . . . Critical Parts Destroyed . | . . . Critical Strikes 2 | 1 1 . Corrupt 2 | 1 1 . Melee Attacks . | . . . Impact . | . . . Slashing . | . . . Piercing . | . . . Sneak Attacks . | . . . Combat Hostiles . | . . . Follow-up Attacks . | . . . Damage Inflicted 612 | 86 197 329 Guns 181 | 86 41 54 Cannons 403 | . 130 273 Explosions 26 | . 26 . Melee . | . . . Ramming 2 | . . 2 Kinetic 19 | . . 19 Thermal 119 | 35 49 35 Explosive . | . . . Electromagnetic 472 | 51 148 273 Impact . | . . . Slashing . | . . . Piercing . | . . . Highest Corruption . | . . . Average Corruption . | . . . Corruption Purged . | . . . Corruption Blocked . | . . . Overload Shots . | . . . Overflow Damage 15 | . 15 . Projectiles 15 | . 15 . Explosions . | . . . Melee . | . . . Knockbacks . | . . . Impact . | . . . Kinetic . | . . . Secondary . | . . . Self-Inflicted Damage 1 | . . 1 Shots . | . . . Rammed 1 | . . 1 Targets Rammed 1 | . . 1 Kicked . | . . . Crushed . | . . . Highest Temperature 291 | 90 97 291 Average Temperature 64 | 41 32 96 Received Heat Transfer 143 | 30 6 107 Siege Activations . | . . . Robots Corrupted 1 | . . 1 Combat Hostiles 1 | . . 1 Parts Fried . | . . . Impact Corruptions . | . . . Robots Melted . | . . . Combat Hostiles . | . . . Parts Melted . | . . . Heat Transferred 250 | 75 100 75 Parts Sabotaged . | . . . Parts Stolen . | . . . Parts Stripped . | . . . Power Chain Reactions 1 | . 1 . Alert | -11 -10 -10 ------- Run | Yrd Mat Min Peak Influence 169 | 25 169 145 Initial 65 | . 16 65 Average 78 | 3 105 101 Maximum Alert Level . | . . . Low Security (%) 100 | 100 100 100 Level 1 . | . . . Level 2 . | . . . Level 3 . | . . . Level 4 . | . . . Level 5 . | . . . High Security . | . . . Max Security . | . . . Squads Dispatched 1 | . 1 . Investigation . | . . . Extermination . | . . . Reinforcement 1 | . 1 . Assault . | . . . Garrison . | . . . Intercept . | . . . Searches Triggered . | . . . Construction Impeded . | . . . Haulers Reinforced . | . . . Active Scanning Responses . | . . . Cargo Convoy Interrupts . | . . . Stealth | -11 -10 -10 --------- Run | Yrd Mat Min Distress Signals . | . . . Communications Jammed . | . . . Distress Signals . | . . . Times Spotted 14 | 1 5 8 Peak Tracking Total 4 | 1 3 4 Tactical Retreats 1 | . . 1 Traps | -11 -10 -10 ------- Run | Yrd Mat Min Traps Triggered . | . . . Indirectly . | . . . Trap Hack Attempts . | . . . Triggered . | . . . Disarmed . | . . . Reprogrammed . | . . . Reused . | . . . Traps Extracted . | . . . Installed . | . . . Triggered . | . . . Machines | -11 -10 -10 ---------- Run | Yrd Mat Min Machines Disabled 4 | . 2 2 Max in Single Turn 1 | . 1 1 Machines Repaired . | . . . Machines Dismantled . | . . . Machines Sabotaged . | . . . Overloaded Fab Kills . | . . . Hacking | -11 -10 -10 --------- Run | Yrd Mat Min Machines Accessed . | . . . Terminals . | . . . Fabricators . | . . . Repair Stations . | . . . Recycling Units . | . . . Scanalyzers . | . . . Garrison Access . | . . . Total Hacks . | . . . Successful . | . . . Failed . | . . . Catastrophic . | . . . Database Lockouts . | . . . Manual . | . . . Terminals . | . . . Fabricators . | . . . Repair Stations . | . . . Recycling Units . | . . . Scanalyzers . | . . . Garrison Access . | . . . Terminal Hacks . | . . . Fabricator Hacks . | . . . Repair Station Hacks . | . . . Recycling Unit Hacks . | . . . Scanalyzer . | . . . Garrison Access Hacks . | . . . Unauthorized Hacks . | . . . Terminals . | . . . Fabricators . | . . . Repair Stations . | . . . Recycling Units . | . . . Scanalyzers . | . . . Garrison Access . | . . . Data Cores Recovered . | . . . Used . | . . . Hacking Detections . | . . . Full Trace Events . | . . . Feedback Events . | . . . Feedback Blocked . | . . . Robot Schematics Acquired . | . . . Robots Built . | . . . Authchips . | . . . Time . | . . . Total Robot Build Rating . | . . . Part Schematics Acquired . | . . . Parts Built . | . . . Authchips . | . . . Time . | . . . Total Part Build Rating . | . . . Parts Repaired . | . . . Time . | . . . Parts Recycled . | . . . Recycled Matter . | . . . Retrieved Matter . | . . . Retrieved Components . | . . . Parts Scanalyzed . | . . . Part Schematics Acquired . | . . . Parts Damaged . | . . . Bothacking | -11 -10 -10 ------------ Run | Yrd Mat Min Used RIF Installer . | . . . Robots Hacked . | . . . Non-combat . | . . . Combat . | . . . Robot Hacks Applied . | . . . Relay Couplers Released . | . . . Fabnet Peak Effective % . | . . . Robots Rewired . | . . . Allies Hacked . | . . . Hacks Repelled . | . . . Allies | -11 -10 -10 -------- Run | Yrd Mat Min Total Allies . | . . . Largest Group . | . . . Highest-Rated Group . | . . . Highest-Rated Ally . | . . . Total Orders . | . . . Ally Attacks . | . . . Total Damage . | . . . Kills . | . . . Allies Corrupted . | . . . Allies Melted . | . . . Intel | -11 -10 -10 ------- Run | Yrd Mat Min Robot Analysis Total . | . . . Derelict Logs Recovered 2 | . . 2 Drone Launches . | . . . Drone Recoveries . | . . . Exploration | -11 -10 -10 ------------- Run | Yrd Mat Min Turns Passed 422 | 104 141 177 Spaces Moved 315 | 94 116 105 Core 23 | 23 . . Treads . | . . . Legs 5 | 5 . . Wheels 287 | 66 116 105 Hover . | . . . Flight . | . . . Fastest Speed 50 | 50 80 110 Average Speed 92 | 74 86 115 Slowest Speed 155 | 120 110 155 Overloaded Moves . | . . . Propulsion Burnouts . | . . . Robots Hopped . | . . . Cave-ins Triggered . | . . . Exploration Rate (%) 19 | 9 19 29 Regions Visited 2 Branch Regions 1 Pre-discovered Areas . | . . . Known Exits Taken . | . . . Unknown Exits Taken 2 | 1 1 . Scrap Searched . | . . . Spaces Dug . | . . . Terrain Destroyed 3 | . 3 . Melee . | . . . Projectile . | . . . AOE 3 | . 3 . Terrain Rammed . | . . . Walls Destroyed . | . . . Machines Disabled . | . . . Actions | -11 -10 -10 --------- Run | Yrd Mat Min Total 386 | 118 137 131 Wait . | . . . Move 313 | 93 115 105 Hop . | . . . Pick Up 14 | 9 3 2 Fast Attach 2 | . 2 . Attach 14 | 7 1 6 Detach 2 | 2 . . Swap 4 | 1 2 1 Drop 2 | 1 1 . Fire 34 | 5 13 16 Melee . | . . . Ram 1 | . . 1 Kick . | . . . Crush . | . . . Escape Stasis . | . . . Rewire . | . . . Trap . | . . . Miscellaneous . | . . . Route ------- -11/Scrapyard -10/Materials -10/Mines History --------- Turn | Location | Event 2 | -11/Scrapyard | Met Revision 17 80 | -11/Scrapyard | Discovered new exit (range 8) 105 | -11/Scrapyard | Entered Materials 219 | -10/Materials | Discovered new exit (range 16) 246 | -10/Materials | Entered Mines 264 | -10/Mines | Assembled infested the area 295 | -10/Mines | Learned Materials terminal intel 305 | -10/Mines | Build established: Mutant 350 | -10/Mines | Learned Materials security intel 401 | -10/Mines | Core integrity fell below 50% 408 | -10/Mines | Core integrity fell below 20% 423 | -10/Mines | Destroyed by as-81150 with Assembled Heavy Rifle Last Messages --------------- K-01 Serf collects debris. Slammed into K-01 Serf. Ramming works as a last resort when unarmed or blocked, but can have serious negative consequences. K-01 Serf destroyed. Acquired Wheel. Acquired 2 matter. Acquired 8 matter. Wheel destroyed. Lgt. EM Pulse Cannon destroyed. Imp. Ion Engine destroyed. Lgt. EM Pulse Cannon destroyed. Heat Sink destroyed. Wheel destroyed. Lgt. Ion Engine destroyed. Aluminum Leg destroyed. as-71833 destroyed. Lgt. Assault Rifle destroyed. [Achievement: First Step to Greatness] Map ----- +----------------------------------------------------+ | ?????????????????????????????????????????????????? | | ?????????????????????????????????????????????????? | | ?????????????????????????????????????????????????? | | ??????????????????????????#??????????????????????? | | ????????????????????????? ##????????????????????? | | ????????????????????????? % ##???#??????????????? | | ????????????????????????## #?? #??????????????? | | ???????????????????????## ### ##?????????????? | | ???????????????????????# !!??????????????? | | ????????????????######? *%???????????????? | | ????????????????? =! #???????????????? | | ??????????????????%= ????????????????? | | ####???????????????# """ ?????????????????? | | # #???????????????? "" ??????????????????? | | #?????????????????# "" #??????????????????? | | #??????????????????# *% #??????????????????? | | ##??????????????????# ! ##?????????????????? | | #????????????????????#% #?????????????????? | | ##???????????????????#* # #????????????????? | | ##??????????????????# %#?? #???????????????? | | ##????? ???????????# #????#???????????????? | | ## #????? ##???????# #????????????????????? | | ?## #???# ###???#% #????????????????????? | | ??## ##????# ##?# #????????????????????? | | ???## #??????# ###aa#????????????????????? | | ????# #????????# @% #????????????????????? | | ????# #?????????# #????????????????????? | | ????# #?????????## # ### ##????????????????????? | | ????# #??????????# ??# #?# #?????????????????????? | | ????# #??????????????# ### #?????????????????????? | | ????# ######????????## ## ###???????????????????? | | ????# ##### #?## ##??????????????????? | | ????###### ### #??????????????????? | | ##???????# ######## #??????????????????? | | T#####???# #???### #??????????????????? | | %= ##### ##### ##??????????????????? | | [""" %! ##???????????????????? | | "" ########## #????????????????????? | | """ #????????## #### ##????????????????????? | | #?????????#######??####?????????????????????? | | ######???????????????????????????????????????????? | | ?????????????????????????????????????????????????? | | ?????????????????????????????????????????????????? | | | | | | | | | | | | | | | +----------------------------------------------------+ Best States ------------- Heat Dissipation 35 Energy Generation 12 Energy Capacity 265 Matter Stores 300 Matter Capacity 300 Sight Range 16 Terrain Scan Density 85 Evasion (%) 50 Item Schematics ----------------- None Robot Schematics ------------------ None Fabricated ------------ Nothing Alien Tech Used ----------------- None Achievements -------------- First Step to Greatness Power Corrupts Uninvited Guest Challenges ------------ None Game ------ Seed CombatSalvageMace Manual? 0 Play Time 00:14:02 Cumulative 0.1 hours Start 2024.04.20 @ 11:57:17 End 2024.04.20 @ 12:10:38 Sessions 1 Manual Loads 0 Difficulty Rogue Special Mode None Game No. 1 Rogue 1 Adventurer 0 Explorer 0 Win Type - Total 0 Types 0/0/0/0/0/0/0/0/0 Lore% 0 Gallery% 1 Achievement% 1 Wizard Run 0 Options --------- Layout 1 ASCII 0 Keyboard 0 Movement Mouse Keybinds 0 Fullscreen 1 Font 24/Cog Map View 50x35 Zoom Use 0% Tactical HUD 0 Map Filters NONE Filters NONE Steam 1 RUN: f45d86c2-173c-4921-bbc5-2b175c9f5a43